bitfinex/quotes_BTCUSD_20241018
["timestamp","ask_amount","ask_price","bid_price","bid_amount"]
[1729267453244,0.14895915,68596.0,68595.0,0.2964666]
[1729267453491,0.14895915,68596.0,68595.0,0.29865234]
[1729267453958,0.0498659,68609.0,68595.0,0.21735234]
[1729267454176,0.21850759,68605.0,68597.0,0.1906]
[1729267454418,0.14895915,68604.0,68597.0,0.1906]
[1729267455511,0.14895915,68604.0,68597.0,0.1926]
[1729267456210,0.21850759,68603.0,68597.0,0.1906]
[1729267456436,0.14895915,68602.0,68597.0,0.1906]
[1729267459635,0.14895915,68602.0,68598.0,0.002]
[1729267459844,0.14895915,68602.0,68597.0,0.1906]
[1729267460068,0.14895915,68602.0,68598.0,0.0828]
[1729267460300,0.14895915,68602.0,68601.0,0.2723]
[1729267460735,0.14895915,68602.0,68601.0,0.28037292]
[1729267461208,0.14895915,68602.0,68601.0,0.2723]
[1729267461436,0.0498659,68609.0,68603.0,0.002]
[1729267461650,0.0498659,68609.0,68604.0,0.2687]
[1729267461862,0.21850759,68629.0,68609.0,0.2687]
[1729267462101,0.21850759,68613.0,68606.0,0.19]
[1729267462322,0.0499493,68618.0,68608.0,0.19]
[1729267462538,0.21850759,68629.0,68610.0,0.19]
[1729267462763,0.21850759,68629.0,68617.0,0.2687]
[1729267462983,0.21850759,68629.0,68620.0,0.002]
[1729267463409,0.21850759,68629.0,68621.0,0.002]
[1729267463645,0.21850759,68622.0,68618.0,0.002]
[1729267463865,0.14895915,68628.0,68618.0,0.002]
[1729267464317,0.14895915,68628.0,68620.0,0.002]
[1729267464550,0.14895915,68628.0,68617.0,0.2687]
[1729267464551,0.14895915,68628.0,68625.0,0.002]
[1729267464994,0.14895915,68628.0,68623.0,0.002]
[1729267465217,0.14895915,68628.0,68617.0,0.2707]
[1729267465668,0.15061915,68628.0,68617.0,0.2707]
[1729267466129,0.15061915,68628.0,68617.0,0.2687]
[1729267466566,0.15061915,68628.0,68618.0,0.002]
[1729267467211,0.15061915,68628.0,68619.0,0.002]
[1729267467521,0.15061915,68628.0,68617.0,0.2687]
[1729267467522,0.15061915,68628.0,68625.0,0.002]
[1729267467724,0.15061915,68628.0,68626.0,0.081]
[1729267469174,0.15061915,68628.0,68627.0,0.1946]
[1729267469637,0.00166,68628.0,68627.0,0.1946]
[1729267469876,0.21850759,68645.0,68629.0,0.002]
[1729267470083,0.21850759,68635.0,68634.0,0.0848]
[1729267470323,0.21850759,68635.0,68614.0,0.002]
[1729267470324,0.21850759,68638.0,68637.0,0.002]
[1729267470545,0.21850759,68638.0,68637.0,0.2794]
[1729267470771,0.21850759,68645.0,68642.0,0.002]
[1729267471003,0.21850759,68645.0,68641.0,0.002]
[1729267471226,0.00166,68653.0,68641.0,0.002]
[1729267471447,0.21850759,68647.0,68641.0,0.002]
[1729267471656,0.14895915,68652.0,68641.0,0.002]
[1729267471865,0.14895915,68652.0,68642.0,0.002]
[1729267472323,0.14895915,68652.0,68646.0,0.002]
[1729267472558,0.14895915,68652.0,68650.0,0.002]
[1729267472771,0.14895915,68652.0,68647.0,0.2724]
[1729267472772,0.14895915,68652.0,68649.0,0.002]
[1729267472970,0.14895915,68652.0,68647.0,0.27128938]
[1729267473891,0.14895915,68652.0,68651.0,0.00218362]
[1729267475569,0.00166,68653.0,68651.0,0.00218362]
[1729267476007,0.00166,68653.0,68652.0,0.0807]
[1729267476730,0.00166,68653.0,68652.0,0.2687]
[1729267476951,0.00166,68653.0,68652.0,0.2785964]
[1729267477159,0.00166,68653.0,68652.0,0.2687]
[1729267477649,0.00166,68655.0,68652.0,0.2687]
[1729267477868,0.21850759,68654.0,68653.0,0.2778964]
[1729267478082,0.00166,68655.0,68653.0,0.268]
[1729267479912,0.17754528,68662.0,68653.0,0.268]
[1729267481782,0.21850759,68669.0,68653.0,0.268]
[1729267482013,0.21850759,68669.0,68651.0,0.00218362]
[1729267482014,0.21850759,68669.0,68655.0,0.182]
[1729267482240,0.21850759,68669.0,68661.0,0.2609]
[1729267482489,0.21850759,68669.0,68663.0,0.0789]
[1729267483029,0.00166,68674.0,68663.0,0.0789]
[1729267483256,0.21850759,68672.0,68669.0,0.00218287]
[1729267483692,0.00166,68674.0,68672.0,0.2768]
[1729267484375,0.04499693,68674.0,68672.0,0.2768]
[1729267484627,0.00166,68674.0,68672.0,0.2768]
[1729267487491,0.15061915,68673.0,68669.0,0.00218287]
[1729267487754,0.14895915,68672.0,68669.0,0.00218287]
[1729267490989,0.14895915,68672.0,68670.0,0.2668]
[1729267492322,0.14895915,68672.0,68670.0,0.0764]
[1729267492796,0.14895915,68672.0,68669.0,0.00218287]
[1729267493484,0.01081742,68671.0,68669.0,0.00218287]
[1729267493693,0.15977657,68670.0,68669.0,0.00218287]
[1729267494602,0.14895915,68670.0,68669.0,0.00218287]
[1729267494816,0.15978196,68670.0,68669.0,0.00218287]
[1729267495497,0.19064157,68670.0,68669.0,0.00218287]
[1729267497886,0.21960657,68670.0,68669.0,0.00218287]
[1729267498330,0.22160657,68670.0,68669.0,0.00218287]
[1729267498543,0.22165778,68670.0,68669.0,0.00218287]
[1729267499186,0.21965778,68670.0,68669.0,0.00218287]
[1729267499385,0.23323719,68670.0,68669.0,0.00218287]
[1729267501333,0.22159513,68670.0,68669.0,0.00218287]
[1729267501554,0.23339392,68670.0,68669.0,0.00218287]
[1729267504058,0.23539392,68670.0,68669.0,0.00218287]
[1729267504312,0.25512986,68670.0,68669.0,0.00218287]
[1729267504796,0.21981187,68670.0,68669.0,0.00218287]
[1729267505002,0.25514155,68670.0,68669.0,0.00218287]
[1729267505217,0.23340808,68670.0,68669.0,0.00218287]
[1729267506332,0.23340808,68670.0,68669.0,0.26788287]
[1729267506333,0.07086262,68670.0,68669.0,0.26788287]
[1729267506563,0.01086905,68670.0,68669.0,0.26788287]
[1729267506790,0.001658,68672.0,68669.0,0.26788287]
[1729267506791,0.001658,68672.0,68669.0,0.26762967]
[1729267507001,0.001658,68672.0,68670.0,0.0829]
[1729267507663,0.01086491,68671.0,68670.0,0.0829]
[1729267508331,0.15982406,68671.0,68670.0,0.0829]
[1729267508563,0.17340512,68671.0,68670.0,0.0829]
[1729267508773,0.19079004,68671.0,68670.0,0.0829]
[1729267508983,0.19079004,68671.0,68669.0,0.00192967]
[1729267509223,0.21979877,68670.0,68669.0,0.00192967]
[1729267509452,0.21979883,68670.0,68669.0,0.00192967]
[1729267510376,0.2125216,68670.0,68669.0,0.00192967]
[1729267511096,0.21979884,68670.0,68669.0,0.00192967]
[1729267511566,0.001658,68672.0,68670.0,0.0806]
[1729267511780,0.001658,68672.0,68671.0,0.00883508]
[1729267511997,0.001658,68672.0,68671.0,0.08652308]
[1729267512227,0.001658,68672.0,68671.0,0.0806]
[1729267512907,0.21848559,68680.0,68671.0,0.0806]
[1729267513177,0.14895915,68679.0,68671.0,0.0806]
[1729267519263,0.14895915,68679.0,68672.0,0.01009636]
[1729267519481,0.14895915,68679.0,68671.0,0.0806]
[1729267519809,0.21850759,68678.0,68671.0,0.0806]
[1729267520019,0.14895915,68677.0,68671.0,0.0806]
[1729267521610,0.23590167,68676.0,68671.0,0.0806]
[1729267521838,0.1663531,68675.0,68671.0,0.0806]
[1729267522073,0.14895915,68675.0,68671.0,0.0806]
[1729267523175,0.14895915,68675.0,68669.0,0.00192967]
[1729267523660,0.01087151,68674.0,68669.0,0.00192967]
[1729267523874,0.15983066,68673.0,68669.0,0.00192967]
[1729267524070,0.02826598,68672.0,68669.0,0.00192967]
[1729267524500,0.00727662,68682.0,68670.0,0.27342648]
[1729267524732,0.21850759,68678.0,68670.0,0.27342648]
[1729267524957,0.15982992,68677.0,68670.0,0.27342648]
[1729267525198,0.01087077,68676.0,68670.0,0.27342648]
[1729267525409,0.14895915,68675.0,68670.0,0.27342648]
[1729267526122,0.14895915,68675.0,68670.0,0.265]
[1729267526361,0.01087052,68674.0,68671.0,0.000829]
[1729267526578,0.21850759,68681.0,68671.0,0.000829]
[1729267526579,0.14895915,68673.0,68671.0,0.000829]
[1729267526790,0.14895915,68673.0,68671.0,0.00058496]
[1729267527519,0.001658,68680.0,68671.0,0.00058496]
[1729267527743,0.001658,68680.0,68672.0,0.0761]
[1729267527744,0.1598286,68679.0,68672.0,0.0761]
[1729267527958,0.14895915,68679.0,68672.0,0.0761]
[1729267528184,0.001658,68680.0,68673.0,0.00291198]
[1729267528415,0.15061715,68680.0,68672.0,0.0761]
[1729267529546,0.0108708,68679.0,68672.0,0.0761]
[1729267529760,0.36746674,68679.0,68672.0,0.0761]
[1729267530010,0.01087091,68678.0,68672.0,0.0761]
[1729267530272,0.15983006,68677.0,68672.0,0.0761]
[1729267530490,0.01087091,68676.0,68672.0,0.0761]
[1729267530711,0.15983131,68675.0,68672.0,0.0761]
[1729267530930,0.14895915,68675.0,68672.0,0.0761]
[1729267531592,0.01087281,68674.0,68672.0,0.0761]
[1729267531821,0.14895915,68673.0,68672.0,0.0761]
[1729267532057,0.15311641,68673.0,68672.0,0.0761]
[1729267532483,0.16399439,68673.0,68672.0,0.0761]
[1729267532906,0.15311641,68673.0,68672.0,0.0761]
[1729267533342,0.16399728,68673.0,68672.0,0.0761]
[1729267534686,0.16399728,68673.0,68671.0,0.00058496]
[1729267534930,0.0282988,68672.0,68671.0,0.00058496]
[1729267535177,0.1981435,68672.0,68671.0,0.00058496]
[1729267535397,0.20245753,68672.0,68671.0,0.00058496]
[1729267535864,0.18571707,68672.0,68671.0,0.00058496]
[1729267537001,0.19299453,68672.0,68671.0,0.00058496]
[1729267538395,0.18571707,68672.0,68671.0,0.00058496]
[1729267538612,0.18572335,68672.0,68671.0,0.07588496]
[1729267539550,0.1721089,68672.0,68671.0,0.07588496]
[1729267539998,0.18572298,68672.0,68671.0,0.07588496]
[1729267540466,0.18572298,68672.0,68671.0,0.00058496]
[1729267545071,0.18572449,68672.0,68671.0,0.00058496]
[1729267545986,0.19300185,68672.0,68671.0,0.00058496]
[1729267546200,0.19300315,68672.0,68671.0,0.00058496]
[1729267546867,0.19300315,68672.0,68671.0,0.00033839]
[1729267547314,0.22841083,68672.0,68671.0,0.00033839]
[1729267547526,0.20662109,68672.0,68671.0,0.00033839]
[1729267547759,0.2284096,68672.0,68671.0,0.00033839]
[1729267548215,0.23750675,68672.0,68671.0,0.00033839]
[1729267548877,0.21479166,68672.0,68671.0,0.00033839]
[1729267549095,0.22840841,68672.0,68671.0,0.00033839]
[1729267549370,0.21479166,68672.0,68671.0,0.00033839]
[1729267549847,0.17938626,68672.0,68671.0,0.00033839]
[1729267550060,0.21478942,68672.0,68671.0,0.00033839]
[1729267552051,0.21644742,68672.0,68671.0,0.00033839]
[1729267552985,0.30659259,68672.0,68671.0,0.00033839]
[1729267553235,0.60905485,68672.0,68671.0,0.00033839]
[1729267553446,0.50027569,68672.0,68671.0,0.00033839]
[1729267553891,0.47263052,68672.0,68671.0,0.00033839]
[1729267554135,0.47063052,68672.0,68671.0,0.00033839]
[1729267554380,0.47063052,68672.0,68669.0,0.00192967]
[1729267554381,0.002,68670.0,68669.0,0.00192967]
[1729267554602,0.38754499,68670.0,68669.0,0.00192967]
[1729267554837,0.38754499,68670.0,68652.0,0.0492318]
[1729267554838,0.002,68663.0,68657.0,0.21850759]
[1729267555087,0.40415849,68663.0,68657.0,0.21850759]
[1729267555314,0.68256356,68663.0,68652.0,0.0492318]
[1729267555535,0.5789125,68663.0,68652.0,0.0492318]
[1729267556201,0.64303646,68663.0,68652.0,0.0492318]
[1729267556642,0.56981502,68663.0,68652.0,0.0492318]
[1729267557100,0.50467177,68663.0,68652.0,0.0492318]
[1729267557325,0.68785244,68663.0,68652.0,0.0492318]
[1729267558468,0.57915272,68663.0,68652.0,0.0492318]
[1729267558720,0.57880255,68663.0,68652.0,0.0492318]
[1729267558946,0.64981463,68663.0,68652.0,0.0492318]
[1729267559389,0.73672277,68663.0,68652.0,0.0492318]
[1729267560090,0.66571069,68663.0,68652.0,0.0492318]
[1729267560304,0.40720255,68663.0,68652.0,0.0492318]
[1729267560520,0.33456724,68663.0,68652.0,0.0492318]
[1729267560753,0.2693571,68663.0,68652.0,0.0492318]
[1729267560986,0.24672489,68663.0,68652.0,0.0492318]
[1729267561222,0.24872489,68663.0,68652.0,0.0492318]
[1729267561444,0.31390758,68663.0,68652.0,0.0492318]
[1729267561678,0.24672489,68663.0,68652.0,0.0492318]
[1729267561888,0.22497745,68663.0,68652.0,0.0492318]
[1729267562332,0.19594974,68663.0,68652.0,0.0492318]
[1729267562542,0.20323001,68663.0,68652.0,0.0492318]
[1729267562777,0.19594974,68663.0,68652.0,0.0492318]
[1729267562993,0.20323001,68663.0,68652.0,0.0492318]
[1729267563226,0.20523001,68663.0,68652.0,0.0492318]
[1729267563451,0.2269345,68663.0,68658.0,0.00218407]
[1729267563682,0.22493457,68663.0,68658.0,0.00218407]
[1729267564132,0.22493457,68663.0,68652.0,0.0492318]
[1729267564133,0.002,68662.0,68652.0,0.04724487]
[1729267564360,0.14895915,68654.0,68652.0,0.04724487]
[1729267564794,0.01573278,68653.0,68652.0,0.04724487]
[1729267565021,0.16469193,68653.0,68648.0,0.1862]
[1729267565247,0.159821,68652.0,68648.0,0.1862]
[1729267565462,0.01086185,68651.0,68648.0,0.1862]
[1729267565684,0.159821,68650.0,68648.0,0.1862]
[1729267565922,0.01086185,68649.0,68648.0,0.1862]
[1729267566140,0.16468565,68649.0,68648.0,0.1862]
[1729267567236,0.19564569,68649.0,68645.0,0.0793]
[1729267567451,0.19078104,68648.0,68645.0,0.0793]
[1729267567663,0.19078104,68648.0,68639.0,0.0490488]
[1729267567940,0.19556522,68648.0,68639.0,0.0490488]
[1729267568378,0.19556522,68648.0,68632.0,0.2693]
[1729267568622,0.19556522,68648.0,68632.0,0.3190433]
[1729267570387,0.23905095,68648.0,68632.0,0.3190433]
[1729267570619,0.21728896,68648.0,68632.0,0.3190433]
[1729267570853,0.19556023,68648.0,68632.0,0.3190433]
[1729267571074,0.217279,68648.0,68632.0,0.3190433]
[1729267571303,0.22655852,68648.0,68632.0,0.3190433]
[1729267571514,0.22455852,68648.0,68632.0,0.3190433]
[1729267572187,0.22655852,68648.0,68632.0,0.3190433]
[1729267572506,0.22455852,68648.0,68632.0,0.3190433]
[1729267572703,0.22655852,68648.0,68632.0,0.3190433]
[1729267573130,0.22655852,68648.0,68638.0,0.00218452]
[1729267573131,0.25066262,68648.0,68638.0,0.00218452]
[1729267573340,0.22655852,68648.0,68638.0,0.00218452]
[1729267573552,0.22455852,68648.0,68638.0,0.00218452]
[1729267573960,0.22655852,68648.0,68638.0,0.00218452]
[1729267574206,0.002,68639.0,68638.0,0.00218452]
[1729267574432,0.15095915,68639.0,68638.0,0.00218452]
[1729267574644,0.22177434,68639.0,68638.0,0.00218452]
[1729267574874,0.22177434,68639.0,68620.0,0.0815]
[1729267574875,0.26425627,68639.0,68620.0,0.0815]
[1729267575120,0.14895915,68625.0,68620.0,0.0815]
[1729267575322,0.20163297,68625.0,68620.0,0.0815]
[1729267575610,0.18464982,68625.0,68611.0,0.0828]
[1729267575807,0.14895915,68613.0,68609.0,0.1939]
[1729267576017,0.0135715,68612.0,68609.0,0.1939]
[1729267576218,0.14895915,68611.0,68604.0,0.078]
[1729267576466,0.159821,68611.0,68604.0,0.078]
[1729267576676,0.14895915,68605.0,68604.0,0.078]
[1729267576887,0.159821,68605.0,68604.0,0.078]
[1729267577095,0.16452493,68605.0,68601.0,0.186429]
[1729267577334,0.14895915,68603.0,68601.0,0.000829]
[1729267577562,0.22173719,68603.0,68601.0,0.000829]
[1729267577783,0.22443257,68603.0,68601.0,0.000829]
[1729267578249,0.2264113,68603.0,68601.0,0.000829]
[1729267579848,0.2244113,68603.0,68601.0,0.000829]
[1729267580063,0.2264113,68603.0,68601.0,0.000829]
[1729267580270,0.23887225,68603.0,68602.0,0.277789]
[1729267580516,0.24087225,68603.0,68602.0,0.277789]
[1729267580752,0.24087225,68603.0,68602.0,0.1908302]
[1729267580961,0.25049853,68603.0,68602.0,0.01814895]
[1729267581182,0.002,68602.0,68601.0,0.000829]
[1729267581407,0.002,68594.0,68584.0,0.21850759]
[1729267581644,0.21971592,68602.0,68568.0,0.21850759]
[1729267581645,0.14895915,68587.0,68568.0,0.21850759]
[1729267581842,0.14895915,68587.0,68575.0,0.21850759]
[1729267582092,0.14895915,68585.0,68557.0,0.50927877]
[1729267582336,0.14895915,68581.0,68564.0,0.21850759]
[1729267582545,0.21850759,68579.0,68557.0,0.50927877]
[1729267582747,0.16248427,68578.0,68557.0,0.50927877]
[1729267582976,0.01352512,68577.0,68557.0,0.50927877]
[1729267583207,0.21850759,68572.0,68557.0,0.4747]
[1729267583451,0.16712721,68576.0,68563.0,0.00218656]
[1729267583452,0.14833115,68571.0,68563.0,0.00218656]
[1729267583652,0.15280921,68571.0,68563.0,0.00218656]
[1729267584069,0.16362899,68571.0,68563.0,0.00218656]
[1729267584290,0.01081978,68570.0,68563.0,0.00218656]
[1729267584497,0.15280921,68571.0,68563.0,0.00218656]
[1729267584498,0.15977893,68569.0,68564.0,0.2637]
[1729267584704,0.01081978,68568.0,68564.0,0.2637]
[1729267584920,0.01081978,68567.0,68564.0,0.2637]
[1729267585125,0.00462876,68567.0,68564.0,0.2637]
[1729267585795,0.0490298,68578.0,68564.0,0.2637]
[1729267586009,0.21850759,68570.0,68564.0,0.2637]
[1729267586218,0.17792056,68577.0,68564.0,0.2637]
[1729267586219,0.01080751,68569.0,68564.0,0.2637]
[1729267586429,0.00463191,68569.0,68564.0,0.2637]
[1729267586635,0.14895915,68577.0,68565.0,0.0804]
[1729267586867,0.21850759,68572.0,68565.0,0.0804]
[1729267587082,0.21842029,68572.0,68565.0,0.0804]
[1729267587326,0.00415718,68571.0,68566.0,0.18460638]
[1729267587543,0.00415718,68571.0,68567.0,0.0804]
[1729267587758,0.21850759,68593.0,68567.0,0.0804]
[1729267587759,0.21850759,68593.0,68570.0,0.1833]
[1729267587968,0.21850759,68575.0,68572.0,0.1898]
[1729267588212,0.41703734,68586.0,68575.0,0.0809]
[1729267588422,0.21850759,68578.0,68575.0,0.0809]
[1729267588643,0.41703734,68586.0,68577.0,0.00218576]
[1729267588850,0.01079422,68585.0,68577.0,0.00218576]
[1729267589060,0.0495706,68586.0,68578.0,0.2639]
[1729267589280,0.21850759,68585.0,68579.0,0.1838]
[1729267589932,0.26821779,68593.0,68579.0,0.1838]
[1729267590145,0.15975315,68592.0,68579.0,0.1838]
[1729267590379,0.010794,68591.0,68579.0,0.1838]
[1729267590578,0.15975315,68590.0,68579.0,0.1838]
[1729267590803,0.010794,68589.0,68579.0,0.1838]
[1729267591014,0.15975315,68588.0,68579.0,0.1838]
[1729267591231,0.010794,68587.0,68579.0,0.1838]
[1729267591435,0.26821779,68593.0,68579.0,0.1838]
[1729267591436,0.15975315,68586.0,68579.0,0.1838]
[1729267591639,0.02806874,68585.0,68579.0,0.1838]
[1729267591909,0.17702868,68584.0,68579.0,0.1838]
[1729267592090,0.010794,68583.0,68579.0,0.1838]
[1729267592298,0.010794,68582.0,68579.0,0.1838]
[1729267592502,0.26821779,68593.0,68579.0,0.1838]
[1729267592503,0.01727791,68592.0,68579.0,0.1838]
[1729267592715,0.21850759,68586.0,68579.0,0.1838]
[1729267592924,0.01079881,68585.0,68579.0,0.1838]
[1729267593368,0.14895915,68591.0,68579.0,0.1838]
[1729267593604,0.0280853,68590.0,68580.0,0.08]
[1729267593864,0.01080023,68589.0,68582.0,0.08]
[1729267594083,0.0497102,68593.0,68583.0,0.33985915]
[1729267594321,0.02930992,68592.0,68587.0,0.2621]
[1729267594552,0.01080233,68591.0,68589.0,0.2621]
[1729267594776,0.26838719,68601.0,68590.0,0.0819]
[1729267594995,0.21850759,68594.0,68590.0,0.0819]
[1729267595228,0.26838719,68601.0,68593.0,0.00218524]
[1729267595446,0.02811741,68600.0,68593.0,0.00218524]
[1729267595653,0.01081439,68599.0,68593.0,0.00218524]
[1729267595868,0.01081439,68598.0,68593.0,0.00218524]
[1729267596077,0.21850759,68594.0,68593.0,0.00218524]
[1729267596319,0.26838719,68601.0,68593.0,0.00218524]
[1729267596534,0.14895915,68594.0,68593.0,0.00218524]
[1729267596744,0.04166264,68600.0,68593.0,0.00218524]
[1729267596959,0.01731438,68594.0,68593.0,0.00218524]
[1729267597190,0.21850759,68599.0,68593.0,0.00218524]
[1729267597427,0.02814612,68598.0,68593.0,0.00218524]
[1729267597645,0.39561286,68597.0,68593.0,0.00218524]
[1729267597854,0.02814612,68596.0,68593.0,0.00218524]
[1729267598059,0.01082095,68595.0,68593.0,0.00218524]
[1729267598303,0.01082095,68594.0,68593.0,0.00218524]
[1729267600080,0.17712427,68594.0,68593.0,0.00218524]
[1729267600301,0.2123727,68594.0,68593.0,0.00218524]
[1729267600536,0.21284678,68594.0,68593.0,0.00218524]
[1729267600748,0.22369245,68594.0,68593.0,0.00218524]
[1729267604379,0.18844333,68594.0,68593.0,0.00218524]
[1729267604632,0.2238966,68594.0,68593.0,0.00218524]
[1729267605728,0.24566554,68594.0,68593.0,0.00218524]
[1729267606181,0.24766554,68594.0,68593.0,0.00218524]
[1729267606394,0.24766554,68594.0,68581.0,0.0758]
[1729267606395,0.24566554,68594.0,68581.0,0.0758]
[1729267606602,0.24566554,68594.0,68578.0,0.21850759]
[1729267606603,0.17164176,68586.0,68578.0,0.21850759]
[1729267606821,0.07093729,68585.0,68578.0,0.21850759]
[1729267607032,0.07093729,68585.0,68571.0,0.07603]
[1729267607033,0.21989644,68584.0,68571.0,0.07603]
[1729267607268,0.01451697,68577.0,68571.0,0.07603]
[1729267607499,0.21989644,68576.0,68571.0,0.07603]
[1729267607725,0.07093729,68575.0,68571.0,0.07603]
[1729267607949,0.14895915,68574.0,68571.0,0.07603]
[1729267608183,0.04266957,68573.0,68571.0,0.07603]
[1729267608409,0.21993487,68572.0,68571.0,0.07603]
[1729267608647,0.21993487,68572.0,68571.0,0.00083]
[1729267608871,0.22390038,68572.0,68571.0,0.00083]
[1729267610513,0.22390038,68572.0,68571.0,0.00418712]
[1729267610514,0.07494123,68572.0,68571.0,0.00418712]
[1729267610751,0.07494123,68572.0,68571.0,0.00083]
[1729267611430,0.05316726,68572.0,68571.0,0.00083]
[1729267612500,0.22389278,68572.0,68571.0,0.00083]
[1729267614713,0.20212641,68572.0,68571.0,0.00301649]
[1729267614964,0.05316726,68572.0,68571.0,0.00301649]
[1729267615162,0.04588039,68572.0,68571.0,0.00301649]
[1729267615368,0.04191488,68572.0,68571.0,0.00301649]
[1729267615578,0.02830615,68572.0,68571.0,0.00301649]
[1729267617877,0.21992125,68572.0,68571.0,0.00301649]
[1729267618325,0.22387629,68572.0,68571.0,0.00301649]
[1729267619230,0.22386963,68572.0,68571.0,0.00301649]
[1729267620351,0.20210812,68572.0,68571.0,0.00301649]
[1729267620798,0.05314897,68572.0,68571.0,0.00301649]
[1729267621493,0.03226119,68572.0,68571.0,0.00301649]
[1729267621933,0.17723828,68572.0,68571.0,0.00301649]
[1729267622371,0.18150539,68572.0,68571.0,0.00301649]
[1729267625654,0.20239324,68572.0,68571.0,0.00301649]
[1729267625894,0.20239342,68572.0,68571.0,0.00301649]
[1729267626104,0.22415344,68572.0,68571.0,0.00301649]
[1729267627441,0.20239342,68572.0,68571.0,0.00301649]
[1729267628312,0.22416623,68572.0,68571.0,0.00301649]
[1729267629854,0.1951054,68572.0,68571.0,0.00301649]
[1729267630086,0.18150539,68572.0,68571.0,0.00301649]
[1729267630314,0.03254624,68572.0,68571.0,0.00301649]
[1729267630551,0.0151437,68572.0,68571.0,0.00301649]
[1729267630800,0.01087659,68572.0,68571.0,0.00301649]
[1729267633916,0.01087659,68572.0,68571.0,0.00886793]
[1729267634161,0.01087659,68572.0,68571.0,0.00301649]
[1729267634378,0.21850759,68581.0,68571.0,0.00301649]
[1729267634605,0.04198794,68580.0,68571.0,0.00301649]
[1729267634832,0.04198794,68579.0,68571.0,0.00301649]
[1729267635052,0.19094709,68578.0,68571.0,0.00301649]
[1729267635277,0.04198794,68577.0,68571.0,0.00301649]
[1729267635507,0.15315125,68578.0,68571.0,0.00301649]
[1729267635508,0.17349996,68576.0,68571.0,0.00301649]
[1729267635742,0.04199483,68575.0,68571.0,0.00301649]
[1729267635973,0.01090593,68574.0,68571.0,0.00301649]
[1729267636206,0.01090593,68573.0,68571.0,0.00301649]
[1729267636449,0.01090593,68572.0,68571.0,0.00301649]
[1729267636689,0.17768491,68572.0,68571.0,0.00301649]
[1729267636952,0.19226213,68572.0,68571.0,0.00301649]
[1729267637188,0.22772244,68572.0,68571.0,0.00301649]
[1729267637436,0.23789179,68572.0,68571.0,0.00301649]
[1729267637669,0.23908653,68572.0,68571.0,0.00301649]
[1729267639837,0.20362793,68572.0,68571.0,0.00301649]
[1729267640308,0.1963357,68572.0,68571.0,0.00301649]
[1729267642664,0.50237677,68572.0,68571.0,0.00301649]
[1729267642878,0.52619065,68572.0,68571.0,0.00301649]
[1729267643291,0.56969637,68572.0,68571.0,0.00301649]
[1729267643500,0.52619065,68572.0,68571.0,0.00301649]
[1729267643909,0.55025774,68572.0,68571.0,0.00301649]
[1729267644112,0.52415847,68572.0,68571.0,0.00301649]
[1729267644318,0.56770538,68572.0,68571.0,0.00301649]
[1729267644947,0.56970538,68572.0,68571.0,0.00301649]
[1729267645371,0.68700366,68572.0,68571.0,0.00301649]
[1729267645577,0.68696923,68572.0,68571.0,0.00301649]
[1729267646395,0.77398067,68572.0,68571.0,0.00301649]
[1729267646605,0.68696923,68572.0,68571.0,0.00301649]
[1729267647013,0.68695942,68572.0,68571.0,0.00301649]
[1729267647222,0.002,68567.0,68550.0,0.21850759]
[1729267647428,0.002,68562.0,68545.0,0.0007]
[1729267647634,0.14895915,68550.0,68548.0,0.21850759]
[1729267647840,0.07910242,68549.0,68545.0,0.0007]
[1729267648064,0.20455225,68548.0,68545.0,0.0007]
[1729267648263,0.04728919,68547.0,68545.0,0.0007]
[1729267648573,0.42979356,68546.0,68545.0,0.0007]
[1729267648788,0.49381546,68546.0,68545.0,0.0007]
[1729267649002,0.26071018,68546.0,68545.0,0.00331628]
[1729267649206,0.23892937,68546.0,68545.0,0.0007]
[1729267649435,0.21802691,68546.0,68545.0,0.0007]
[1729267649646,0.19624609,68546.0,68545.0,0.0007]
[1729267650864,0.19624609,68546.0,68545.0,0.00200814]
[1729267651073,0.16517783,68546.0,68545.0,0.0007]
[1729267651289,0.17167298,68546.0,68545.0,0.0007]
[1729267651504,0.16514801,68546.0,68545.0,0.0007]
[1729267652669,0.00531391,68546.0,68545.0,0.1841]
[1729267652868,0.01739343,68554.0,68545.0,0.1841]
[1729267653096,0.18253545,68553.0,68545.0,0.1841]
[1729267653309,0.01087095,68552.0,68551.0,0.00218741]
[1729267653527,0.16514159,68552.0,68551.0,0.00218741]
[1729267654793,0.01618244,68552.0,68551.0,0.07748741]
[1729267655172,0.01739226,68561.0,68551.0,0.09726052]
[1729267655380,0.21850759,68557.0,68551.0,0.09726052]
[1729267655594,0.14895915,68556.0,68551.0,0.09726052]
[1729267655797,0.01087002,68555.0,68551.0,0.09726052]
[1729267656007,0.14895915,68554.0,68551.0,0.09726052]
[1729267656208,0.15426518,68554.0,68551.0,0.09726052]
[1729267657296,0.01087042,68553.0,68551.0,0.09726052]
[1729267657490,0.14895915,68553.0,68551.0,0.09726052]
[1729267657724,0.00530328,68552.0,68551.0,0.09726052]
[1729267658910,0.15426243,68552.0,68551.0,0.02196052]
[1729267659132,0.16513301,68552.0,68551.0,0.00218741]
[1729267659367,0.19838445,68552.0,68545.0,0.0007]
[1729267659570,0.14895915,68546.0,68545.0,0.0007]
[1729267659801,0.46931188,68546.0,68545.0,0.0007]
[1729267660013,0.53167458,68546.0,68545.0,0.001529]
[1729267660246,0.5389655,68546.0,68545.0,0.001529]
[1729267661466,0.002,68542.0,68535.0,0.000829]
[1729267661675,0.14895915,68536.0,68535.0,0.000829]
[1729267661878,0.20440333,68536.0,68535.0,0.000829]
[1729267662055,0.20966395,68536.0,68535.0,0.000829]
[1729267662495,0.23869761,68536.0,68535.0,0.000829]
[1729267662785,0.21695487,68536.0,68535.0,0.000829]
[1729267663004,0.23869761,68536.0,68535.0,0.000829]
[1729267663224,0.25318639,68536.0,68535.0,0.000829]
[1729267663434,0.36267561,68536.0,68535.0,0.000829]
[1729267663639,0.34002403,68536.0,68535.0,0.000829]
[1729267664126,0.38283847,68536.0,68535.0,0.000829]
[1729267664358,0.34202403,68536.0,68535.0,0.000829]
[1729267665016,0.54112403,68536.0,68518.0,0.02282859]
[1729267665251,0.54112403,68536.0,68520.0,0.21850759]
[1729267665252,0.01447711,68527.0,68520.0,0.21850759]
[1729267665476,0.08447784,68526.0,68513.0,0.0195034]
[1729267665701,0.00520784,68525.0,68512.0,0.0789]
[1729267666145,0.24564187,68524.0,68512.0,0.0789]
[1729267666377,0.14895915,68521.0,68512.0,0.0739]
[1729267666614,0.01356714,68520.0,68512.0,0.0739]
[1729267666832,0.16252629,68519.0,68512.0,0.0739]
[1729267667066,0.02442085,68518.0,68512.0,0.0739]
[1729267667297,0.15981286,68517.0,68512.0,0.0739]